[Event "*** Titled Tuesday Blitz"]
[Site "Chess.com"]
[Date "2018.06.05"]
[Round "1"]
[White "evgenysharapov"]
[Black "therealtrader"]
[Result "0-1"]
[WhiteElo "2290"]
[BlackElo "2616"]
[TimeControl "180+2"]
[EndTime "13:06:27 PDT"]
[Termination "therealtrader won by resignation"]

1. e4 {[%clk 0:03:01.8]} 1... c5 {[%clk 0:02:59.8]} 2. Nf3 {[%clk 0:03:02.1]}
2... d6 {[%clk 0:03:01.1]} 3. d4 {[%clk 0:03:02.6]} 3... cxd4 {[%clk 0:03:03]}
4. Nxd4 {[%clk 0:03:03.6]} 4... Nf6 {[%clk 0:03:04.3]} 5. Nc3 {[%clk 0:03:03.9]}
5... a6 {[%clk 0:03:05.7]} 6. g3 {[%clk 0:03:04.3]} 6... e5 {[%clk 0:03:04.9]}
7. Nb3 {[%clk 0:03:04.7]} 7... Be7 {[%clk 0:03:06.4]} 8. Bg2 {[%clk 0:03:05.2]}
8... O-O {[%clk 0:03:08.1]} 9. O-O {[%clk 0:03:05.8]} 9... b5 {[%clk 0:03:09.5]}
10. a4 {[%clk 0:03:06.2]} 10... b4 {[%clk 0:03:09.7]} 11. Nd5 {[%clk 0:03:06.7]}
11... Nxd5 {[%clk 0:03:11]} 12. Qxd5 {[%clk 0:03:07.3]} 12... Ra7 {[%clk
0:03:12.2]} 13. Be3 {[%clk 0:03:08.2]} 13... Be6 {[%clk 0:03:10.8]} 14. Qd3
{[%clk 0:03:08.7]} 14... Ra8 {[%clk 0:03:10.6]} 15. a5 {[%clk 0:03:05.7]} 15...
Qc7 {[%clk 0:03:02.3]} 16. Rfc1 {[%clk 0:03:03.9]} 16... Nd7 {[%clk 0:02:59.9]}
17. c4 {[%clk 0:02:48.7]} 17... Nc5 {[%clk 0:02:59.1]} 18. Qc2 {[%clk
0:02:32.5]} 18... Rfd8 {[%clk 0:02:56.7]} 19. Nd2 {[%clk 0:02:16.2]} 19... Rab8
{[%clk 0:02:47.5]} 20. b3 {[%clk 0:02:16.4]} 20... Rdc8 {[%clk 0:02:38.9]} 21.
h3 {[%clk 0:02:15.5]} 21... Bd8 {[%clk 0:02:39]} 22. f4 {[%clk 0:02:13.8]} 22...
f6 {[%clk 0:02:37.8]} 23. f5 {[%clk 0:02:12.2]} 23... Bf7 {[%clk 0:02:38]} 24.
Bf2 {[%clk 0:02:11.7]} 24... Qc6 {[%clk 0:02:37.6]} 25. Nf1 {[%clk 0:02:07.8]}
25... Nb7 {[%clk 0:02:38.7]} 26. Ne3 {[%clk 0:02:07.4]} 26... Nxa5 {[%clk
0:02:33.2]} 27. g4 {[%clk 0:02:07.1]} 27... Qb7 {[%clk 0:02:32.6]} 28. h4 {[%clk
0:02:05.6]} 28... Nc6 {[%clk 0:02:33.7]} 29. Nd5 {[%clk 0:02:05.2]} 29... Ne7
{[%clk 0:02:30.9]} 30. Kh1 {[%clk 0:01:59.2]} 30... Nxd5 {[%clk 0:02:31.9]} 31.
exd5 {[%clk 0:01:59.6]} 31... a5 {[%clk 0:02:28.9]} 32. Be4 {[%clk 0:01:57.7]}
32... Bb6 {[%clk 0:02:27.6]} 33. Rg1 {[%clk 0:01:55.6]} 33... Bxd5 {[%clk
0:02:18.2]} 34. Bxd5+ {[%clk 0:01:48.1]} 34... Qxd5+ {[%clk 0:02:18.9]} 35. cxd5
{[%clk 0:01:48.6]} 35... Rxc2 {[%clk 0:02:20.8]} 36. Bxb6 {[%clk 0:01:48.9]}
36... Rxb6 {[%clk 0:02:22.4]} 37. Rxa5 {[%clk 0:01:49.2]} 37... Rb7 {[%clk
0:02:04]} 38. Ra6 {[%clk 0:01:49.2]} 38... Rd7 {[%clk 0:02:03.6]} 39. Rb6 {[%clk
0:01:49.5]} 39... Rd2 {[%clk 0:02:00.1]} 40. Rxb4 {[%clk 0:01:48.3]} 40... Rxd5
{[%clk 0:02:01.3]} 41. Rb8+ {[%clk 0:01:48.9]} 41... Kf7 {[%clk 0:02:02.2]} 42.
g5 {[%clk 0:01:49.9]} 42... fxg5 {[%clk 0:02:03.1]} 43. hxg5 {[%clk 0:01:50.5]}
43... Rd4 {[%clk 0:02:01]} 44. g6+ {[%clk 0:01:51.2]} 44... hxg6 {[%clk
0:02:02.2]} 45. fxg6+ {[%clk 0:01:51.9]} 45... Kf6 {[%clk 0:01:59.8]} 46. Rf8+
{[%clk 0:01:40.7]} 46... Ke6 {[%clk 0:02:00.5]} 47. Rgf1 {[%clk 0:01:37.5]}
47... Rh4+ {[%clk 0:02:01]} 48. Kg2 {[%clk 0:01:38.2]} 48... Rg4+ {[%clk
0:02:02.7]} 49. Kh3 {[%clk 0:01:36.8]} 49... Rxg6 {[%clk 0:02:03.8]} 50. b4
{[%clk 0:01:37.1]} 50... Rf6 {[%clk 0:02:02.4]} 51. Re8+ {[%clk 0:01:36.1]}
51... Kf7 {[%clk 0:02:01.9]} 52. Rxf6+ {[%clk 0:01:36.1]} 52... gxf6 {[%clk
0:02:03.8]} 53. Rb8 {[%clk 0:01:36.4]} 53... d5 {[%clk 0:02:04.9]} 54. b5 {[%clk
0:01:36]} 54... d4 {[%clk 0:02:03.4]} 55. Kg2 {[%clk 0:01:36.6]} 55... d3 {[%clk
0:02:04.5]} 0-1

[Event "*** Titled Tuesday Blitz"]
[Site "Chess.com"]
[Date "2018.06.05"]
[Round "1"]
[White "Kimster98"]
[Black "sere99"]
[Result "1/2-1/2"]
[WhiteElo "2559"]
[BlackElo "2263"]
[TimeControl "180+2"]
[EndTime "13:06:33 PDT"]
[Termination "Game drawn by agreement"]

1. Nf3 {[%clk 0:03:00.6]} 1... d5 {[%clk 0:03:00.6]} 2. c4 {[%clk 0:03:00.3]}
2... c6 {[%clk 0:03:00.6]} 3. e3 {[%clk 0:02:58.4]} 3... Nf6 {[%clk 0:03:01.5]}
4. d4 {[%clk 0:02:59.8]} 4... e6 {[%clk 0:03:01.9]} 5. b3 {[%clk 0:02:58.6]}
5... Nbd7 {[%clk 0:03:02.5]} 6. Bb2 {[%clk 0:03:00]} 6... Bd6 {[%clk 0:03:04]}
7. Bd3 {[%clk 0:03:01.1]} 7... O-O {[%clk 0:03:04.8]} 8. O-O {[%clk 0:03:01.8]}
8... Re8 {[%clk 0:03:04.4]} 9. Nbd2 {[%clk 0:03:00.8]} 9... Qe7 {[%clk
0:03:05.6]} 10. Ne5 {[%clk 0:03:01.7]} 10... Ba3 {[%clk 0:02:51.9]} 11. Bxa3
{[%clk 0:02:56.4]} 11... Qxa3 {[%clk 0:02:51.7]} 12. f4 {[%clk 0:02:58]} 12...
Qd6 {[%clk 0:02:46.1]} 13. c5 {[%clk 0:02:56.9]} 13... Qe7 {[%clk 0:02:45.5]}
14. b4 {[%clk 0:02:53.5]} 14... Nxe5 {[%clk 0:02:42.5]} 15. fxe5 {[%clk
0:02:53.6]} 15... Nd7 {[%clk 0:02:44]} 16. Qh5 {[%clk 0:02:47.8]} 16... g6
{[%clk 0:02:40.8]} 17. Qh6 {[%clk 0:02:45.4]} 17... Qf8 {[%clk 0:02:24.1]} 18.
Qh4 {[%clk 0:02:44.6]} 18... Qe7 {[%clk 0:02:23.8]} 19. Qh6 {[%clk 0:02:43.2]}
19... Qf8 {[%clk 0:02:24.7]} 20. Qh4 {[%clk 0:02:30.8]} 20... Qe7 {[%clk
0:02:24.9]} 21. Qg3 {[%clk 0:02:32.4]} 21... b6 {[%clk 0:02:13.9]} 22. Nf3
{[%clk 0:02:17.7]} 22... h6 {[%clk 0:02:09.4]} 23. Qf4 {[%clk 0:02:13.2]} 23...
Kg7 {[%clk 0:02:07.8]} 24. g4 {[%clk 0:02:03.8]} 24... a5 {[%clk 0:02:06.5]} 25.
a3 {[%clk 0:02:03]} 25... Ba6 {[%clk 0:02:05.7]} 26. Bxa6 {[%clk 0:02:03.7]}
26... Rxa6 {[%clk 0:02:07.6]} 27. g5 {[%clk 0:02:04.6]} 27... h5 {[%clk
0:02:06.1]} 28. Nd2 {[%clk 0:02:04.5]} 28... Rea8 {[%clk 0:01:57.3]} 29. Rab1
{[%clk 0:02:05.1]} 29... axb4 {[%clk 0:01:55.7]} 30. axb4 {[%clk 0:02:07]} 30...
b5 {[%clk 0:01:42.6]} 31. Rf2 {[%clk 0:02:06.5]} 31... Ra1 {[%clk 0:01:42.7]}
32. Rxa1 {[%clk 0:02:04]} 32... Rxa1+ {[%clk 0:01:44.6]} 33. Kg2 {[%clk
0:02:05.6]} 33... Ra2 {[%clk 0:01:44.1]} 34. h4 {[%clk 0:02:05.6]} 34... Nb8
{[%clk 0:01:42.1]} 35. e4 {[%clk 0:02:00.7]} 35... Na6 {[%clk 0:01:39.8]} 36.
exd5 {[%clk 0:02:00.1]} 36... cxd5 {[%clk 0:01:41.7]} 37. Nb3 {[%clk 0:01:43.1]}
37... Rxf2+ {[%clk 0:01:36.4]} 38. Kxf2 {[%clk 0:01:45]} 38... Nxb4 {[%clk
0:01:37.4]} 39. Qf6+ {[%clk 0:01:46.5]} 39... Qxf6+ {[%clk 0:01:36.4]} 40. gxf6+
{[%clk 0:01:48]} 40... Kf8 {[%clk 0:01:37.7]} 41. Na5 {[%clk 0:01:48.2]} 41...
Ke8 {[%clk 0:01:37.7]} 42. Ke3 {[%clk 0:01:48.2]} 42... Kd7 {[%clk 0:01:35.2]}
43. Kf4 {[%clk 0:01:45.1]} 43... Nc6 {[%clk 0:01:35.6]} 44. Nb3 {[%clk
0:01:44.3]} 44... Ke8 {[%clk 0:01:33.1]} 45. Kg5 {[%clk 0:01:44.8]} 45... Kf8
{[%clk 0:01:34]} 46. Kf4 {[%clk 0:01:42.4]} 46... Ke8 {[%clk 0:01:34.9]} 47. Kg5
{[%clk 0:01:43.6]} 1/2-1/2

[Event "*** Titled Tuesday Blitz"]
[Site "Chess.com"]
[Date "2018.06.05"]
[Round "1"]
[White "VerdeNotte"]
[Black "fyall777"]
[Result "1-0"]
[WhiteElo "2622"]
[BlackElo "2294"]
[TimeControl "180+2"]
[EndTime "13:06:34 PDT"]
[Termination "VerdeNotte won on time"]

1. c4 {[%clk 0:02:59.8]} 1... e5 {[%clk 0:03:00.2]} 2. Nc3 {[%clk 0:02:58.2]}
2... Nc6 {[%clk 0:03:01]} 3. g3 {[%clk 0:02:55.9]} 3... f5 {[%clk 0:03:01.6]} 4.
Bg2 {[%clk 0:02:53.9]} 4... Nf6 {[%clk 0:03:03.1]} 5. d3 {[%clk 0:02:52.2]} 5...
Bb4 {[%clk 0:03:02.8]} 6. Bd2 {[%clk 0:02:49.7]} 6... O-O {[%clk 0:03:01.9]} 7.
e3 {[%clk 0:02:46.1]} 7... Kh8 {[%clk 0:02:48.6]} 8. Nge2 {[%clk 0:02:39.3]}
8... d6 {[%clk 0:02:46.5]} 9. a3 {[%clk 0:02:37.5]} 9... Bxc3 {[%clk 0:02:45.2]}
10. Bxc3 {[%clk 0:02:34.4]} 10... d5 {[%clk 0:02:41.2]} 11. b4 {[%clk
0:02:23.4]} 11... d4 {[%clk 0:02:22.1]} 12. exd4 {[%clk 0:02:22.9]} 12... Nxd4
{[%clk 0:02:23.1]} 13. O-O {[%clk 0:02:13.5]} 13... c6 {[%clk 0:02:23.6]} 14.
Nxd4 {[%clk 0:02:12.8]} 14... exd4 {[%clk 0:02:23.9]} 15. Bd2 {[%clk 0:02:14]}
15... Be6 {[%clk 0:02:17.3]} 16. Re1 {[%clk 0:02:14.7]} 16... Qd7 {[%clk
0:02:17.6]} 17. a4 {[%clk 0:01:59.3]} 17... Rae8 {[%clk 0:02:17.9]} 18. b5
{[%clk 0:01:57]} 18... c5 {[%clk 0:02:06.1]} 19. a5 {[%clk 0:01:55.4]} 19... Re7
{[%clk 0:02:06.3]} 20. Qf3 {[%clk 0:01:48.6]} 20... h6 {[%clk 0:02:00.7]} 21.
Qxb7 {[%clk 0:01:46.8]} 21... Qxb7 {[%clk 0:01:59.9]} 22. Bxb7 {[%clk
0:01:48.7]} 22... Ne4 {[%clk 0:00:55.3]} 23. Bxe4 {[%clk 0:01:41.7]} 23... fxe4
{[%clk 0:00:50.6]} 24. Rxe4 {[%clk 0:01:43.6]} 24... Rfe8 {[%clk 0:00:51.4]} 25.
Rae1 {[%clk 0:01:40.1]} 25... Kg8 {[%clk 0:00:52.4]} 26. Bf4 {[%clk 0:01:32.7]}
26... Kf7 {[%clk 0:00:43.9]} 27. Bd6 {[%clk 0:01:32.9]} 27... Rd7 {[%clk
0:00:44.4]} 28. Bxc5 {[%clk 0:01:33.3]} 1-0

[Event "*** Titled Tuesday Blitz"]
[Site "Chess.com"]
[Date "2018.06.05"]
[Round "1"]
[White "SamCopeland"]
[Black "vpantev"]
[Result "0-1"]
[WhiteElo "2019"]
[BlackElo "2445"]
[TimeControl "180+2"]
[EndTime "13:06:45 PDT"]
[Termination "vpantev won by resignation"]

1. e4 {[%clk 0:02:56]} 1... c6 {[%clk 0:03:00.3]} 2. d4 {[%clk 0:02:53.9]} 2...
d5 {[%clk 0:03:01.5]} 3. e5 {[%clk 0:02:55.3]} 3... Bf5 {[%clk 0:02:59.3]} 4. h4
{[%clk 0:02:55.1]} 4... h5 {[%clk 0:02:59.2]} 5. c4 {[%clk 0:02:55.1]} 5... Nh6
{[%clk 0:02:55.9]} 6. Be2 {[%clk 0:02:44.8]} 6... Bg4 {[%clk 0:02:53.8]} 7. Nc3
{[%clk 0:02:38.3]} 7... Bxe2 {[%clk 0:02:52.1]} 8. Qxe2 {[%clk 0:02:38.3]} 8...
Nf5 {[%clk 0:02:52.7]} 9. Nf3 {[%clk 0:02:38.1]} 9... dxc4 {[%clk 0:02:50.3]}
10. Qxc4 {[%clk 0:02:38]} 10... e6 {[%clk 0:02:51.2]} 11. Bg5 {[%clk 0:02:37.8]}
11... Be7 {[%clk 0:02:49.4]} 12. Ne4 {[%clk 0:02:31.1]} 12... Nd7 {[%clk
0:02:48.7]} 13. O-O {[%clk 0:02:15.8]} 13... Nb6 {[%clk 0:02:46.2]} 14. Qd3
{[%clk 0:02:10.4]} 14... Nd5 {[%clk 0:02:45.7]} 15. Rfd1 {[%clk 0:02:09.3]}
15... g6 {[%clk 0:02:35.9]} 16. g3 {[%clk 0:01:50]} 16... Kf8 {[%clk 0:02:35.9]}
17. Rac1 {[%clk 0:01:46.4]} 17... Kg7 {[%clk 0:02:35.2]} 18. Qd2 {[%clk
0:01:41.9]} 18... Bxg5 {[%clk 0:02:34]} 19. Nfxg5 {[%clk 0:01:38.5]} 19... Qe7
{[%clk 0:02:31.9]} 20. a3 {[%clk 0:01:37.9]} 20... Rad8 {[%clk 0:02:30.4]} 21.
b4 {[%clk 0:01:37.1]} 21... a6 {[%clk 0:02:30.9]} 22. Qe2 {[%clk 0:01:33]} 22...
Nc7 {[%clk 0:02:29.4]} 23. Nc5 {[%clk 0:01:31.4]} 23... Nb5 {[%clk 0:02:26.8]}
24. d5 {[%clk 0:01:15.7]} 24... Rxd5 {[%clk 0:02:20.5]} 25. Rxd5 {[%clk
0:01:15.7]} 25... cxd5 {[%clk 0:02:20.6]} 26. a4 {[%clk 0:01:13.3]} 26... Nbd4
{[%clk 0:02:21.1]} 27. Qd3 {[%clk 0:01:12.5]} 27... Rc8 {[%clk 0:02:18.3]} 28.
a5 {[%clk 0:01:07.7]} 28... Nc6 {[%clk 0:02:17.5]} 29. Qd2 {[%clk 0:01:04.4]}
29... Nb8 {[%clk 0:02:17]} 30. Rc3 {[%clk 0:00:37]} 30... Rc6 {[%clk 0:02:13]}
31. Kh2 {[%clk 0:00:30.6]} 31... Nd7 {[%clk 0:02:09.9]} 32. Nxd7 {[%clk
0:00:30.6]} 32... Qxd7 {[%clk 0:02:09.6]} 33. Kh3 {[%clk 0:00:30.9]} 33... Qc7
{[%clk 0:02:09.3]} 34. Rxc6 {[%clk 0:00:27.4]} 34... Qxc6 {[%clk 0:02:10.1]} 35.
f3 {[%clk 0:00:26.3]} 35... Qc4 {[%clk 0:02:10.7]} 36. Qf2 {[%clk 0:00:19.9]}
36... Qc1 {[%clk 0:02:03.2]} 37. Kh2 {[%clk 0:00:18.9]} 37... Qe3 {[%clk
0:02:03]} 38. Qf1 {[%clk 0:00:19.1]} 38... Qxe5 {[%clk 0:02:02.5]} 39. b5 {[%clk
0:00:19.1]} 39... Qxg3+ {[%clk 0:02:02.7]} 0-1

[Event "*** Titled Tuesday Blitz"]
[Site "Chess.com"]
[Date "2018.06.05"]
[Round "1"]
[White "Eliwood44"]
[Black "ENEASZ"]
[Result "0-1"]
[WhiteElo "2179"]
[BlackElo "2511"]
[TimeControl "180+2"]
[EndTime "13:06:54 PDT"]
[Termination "ENEASZ won by resignation"]

1. d4 {[%clk 0:03:01.6]} 1... d6 {[%clk 0:03:00.9]} 2. Nf3 {[%clk 0:02:54.5]}
2... Nf6 {[%clk 0:03:00.9]} 3. Bg5 {[%clk 0:02:52.8]} 3... Ne4 {[%clk
0:03:01.3]} 4. Bf4 {[%clk 0:02:53.6]} 4... c6 {[%clk 0:03:00.9]} 5. e3 {[%clk
0:02:54.5]} 5... Qb6 {[%clk 0:03:00.6]} 6. Qc1 {[%clk 0:02:50.4]} 6... g6 {[%clk
0:02:59.8]} 7. Bd3 {[%clk 0:02:45.1]} 7... d5 {[%clk 0:02:55.8]} 8. O-O {[%clk
0:02:41.4]} 8... Bg7 {[%clk 0:02:56.4]} 9. c4 {[%clk 0:02:35.1]} 9... O-O {[%clk
0:02:55]} 10. Nc3 {[%clk 0:02:32.5]} 10... Nxc3 {[%clk 0:02:40.4]} 11. bxc3
{[%clk 0:02:34.4]} 11... Qa6 {[%clk 0:02:27.6]} 12. Nd2 {[%clk 0:02:26.2]} 12...
dxc4 {[%clk 0:02:16.9]} 13. Nxc4 {[%clk 0:02:22.5]} 13... b5 {[%clk 0:02:17.1]}
14. Ne5 {[%clk 0:02:19.7]} 14... Nd7 {[%clk 0:02:02.7]} 15. a4 {[%clk
0:02:17.8]} 15... Nxe5 {[%clk 0:02:00.3]} 16. Bxe5 {[%clk 0:02:14.4]} 16... Bxe5
{[%clk 0:01:57.1]} 17. axb5 {[%clk 0:02:06.1]} 17... Bxh2+ {[%clk 0:01:57.6]}
18. Kxh2 {[%clk 0:02:08]} 18... Qb6 {[%clk 0:01:58.5]} 19. bxc6 {[%clk
0:02:06.7]} 19... Qxc6 {[%clk 0:02:00.4]} 20. e4 {[%clk 0:02:02.7]} 20... Bb7
{[%clk 0:01:57.9]} 21. f3 {[%clk 0:01:54.8]} 21... Rfc8 {[%clk 0:01:54.3]} 22.
c4 {[%clk 0:01:55.9]} 22... Qd6+ {[%clk 0:01:55.1]} 23. Kh1 {[%clk 0:01:54.7]}
23... Qxd4 {[%clk 0:01:56.2]} 24. Rd1 {[%clk 0:01:56.1]} 24... Rc5 {[%clk
0:01:55.5]} 25. g4 {[%clk 0:01:49.6]} 25... Qf2 {[%clk 0:01:39.1]} 26. Qf4
{[%clk 0:01:38.9]} 26... g5 {[%clk 0:01:39.9]} 27. Qh2 {[%clk 0:01:34.5]} 27...
Qxf3+ {[%clk 0:01:37.5]} 28. Qg2 {[%clk 0:01:35.4]} 28... Qxg2+ {[%clk
0:01:35.9]} 29. Kxg2 {[%clk 0:01:37.3]} 29... e5 {[%clk 0:01:32.7]} 30. Kf3
{[%clk 0:01:37.2]} 30... f6 {[%clk 0:01:32.6]} 31. Rdb1 {[%clk 0:01:34.5]} 31...
Bc6 {[%clk 0:01:30.8]} 32. Ke3 {[%clk 0:01:31]} 32... a5 {[%clk 0:01:31.6]} 33.
Rb6 {[%clk 0:01:29.4]} 33... Kf7 {[%clk 0:01:29]} 34. Rh1 {[%clk 0:01:23.8]}
34... Kg6 {[%clk 0:01:25.9]} 35. Rhb1 {[%clk 0:01:13.7]} 35... a4 {[%clk
0:01:26.3]} 36. Rb8 {[%clk 0:01:13.9]} 36... Rxb8 {[%clk 0:01:25]} 37. Rxb8
{[%clk 0:01:15.8]} 37... Ra5 {[%clk 0:01:26.3]} 38. Bb1 {[%clk 0:01:08.3]} 38...
a3 {[%clk 0:01:26.7]} 39. Rg8+ {[%clk 0:01:05.8]} 39... Kf7 {[%clk 0:01:26.6]}
40. Rc8 {[%clk 0:01:06.6]} 40... Bd7 {[%clk 0:01:26.6]} 41. Rc7 {[%clk
0:01:07.1]} 41... Ke8 {[%clk 0:01:28.1]} 42. Ba2 {[%clk 0:01:07.7]} 42... Kd8
{[%clk 0:01:25.9]} 43. Rb7 {[%clk 0:01:06.9]} 43... Kc8 {[%clk 0:01:27.2]} 44.
Rb3 {[%clk 0:01:07.7]} 44... Bxg4 {[%clk 0:01:28]} 45. c5 {[%clk 0:01:07.2]}
45... Be6 {[%clk 0:01:28.4]} 0-1

[Event "*** Titled Tuesday Blitz"]
[Site "Chess.com"]
[Date "2018.06.05"]
[Round "1"]
[White "Gareth-Bale11"]
[Black "MikeSailer"]
[Result "1-0"]
[WhiteElo "2448"]
[BlackElo "2039"]
[TimeControl "180+2"]
[EndTime "13:06:54 PDT"]
[Termination "Gareth-Bale11 won by resignation"]

1. e4 {[%clk 0:03:01.9]} 1... d5 {[%clk 0:03:00.3]} 2. exd5 {[%clk 0:03:02.4]}
2... Qxd5 {[%clk 0:02:59.9]} 3. Nc3 {[%clk 0:03:04.3]} 3... Qd8 {[%clk
0:03:00.4]} 4. Nf3 {[%clk 0:03:05.3]} 4... Nf6 {[%clk 0:03:00.4]} 5. Bc4 {[%clk
0:03:04.4]} 5... a6 {[%clk 0:03:01.2]} 6. O-O {[%clk 0:03:03.6]} 6... b5 {[%clk
0:03:00.4]} 7. Bb3 {[%clk 0:03:04.4]} 7... e6 {[%clk 0:03:01.2]} 8. d4 {[%clk
0:03:03.3]} 8... Bb7 {[%clk 0:02:59.9]} 9. Re1 {[%clk 0:03:03.8]} 9... Be7
{[%clk 0:03:00.8]} 10. h3 {[%clk 0:03:03.6]} 10... O-O {[%clk 0:03:01]} 11. Bg5
{[%clk 0:03:01.3]} 11... Nbd7 {[%clk 0:02:59.7]} 12. Qe2 {[%clk 0:03:01.3]}
12... Re8 {[%clk 0:02:57.2]} 13. Rad1 {[%clk 0:03:01.5]} 13... Nb6 {[%clk
0:02:55.2]} 14. Ne5 {[%clk 0:03:01.7]} 14... Bd6 {[%clk 0:02:07.3]} 15. Bxf6
{[%clk 0:02:52.1]} 15... Qxf6 {[%clk 0:01:59.3]} 16. Ne4 {[%clk 0:02:52.5]}
16... Bxe4 {[%clk 0:01:44.4]} 17. Qxe4 {[%clk 0:02:54.4]} 17... Bxe5 {[%clk
0:01:37.9]} 18. Qxe5 {[%clk 0:02:44.7]} 18... Qxe5 {[%clk 0:01:36.4]} 19. Rxe5
{[%clk 0:02:46.6]} 19... Red8 {[%clk 0:01:33.5]} 20. c3 {[%clk 0:02:46.6]} 20...
Nd7 {[%clk 0:01:29.3]} 21. Re2 {[%clk 0:02:35.4]} 21... c5 {[%clk 0:01:14.2]}
22. d5 {[%clk 0:02:31.5]} 22... exd5 {[%clk 0:01:05.1]} 23. Bxd5 {[%clk
0:02:25.2]} 23... Rab8 {[%clk 0:00:58.4]} 24. Re7 {[%clk 0:02:23.9]} 24... Nf6
{[%clk 0:00:50.1]} 25. Bxf7+ {[%clk 0:02:23]} 25... Kf8 {[%clk 0:00:50.2]} 26.
Rde1 {[%clk 0:02:21.3]} 26... Rd1 {[%clk 0:00:45.4]} 27. Bb3 {[%clk 0:02:11.6]}
27... Rxe1+ {[%clk 0:00:42.8]} 28. Rxe1 {[%clk 0:02:13.5]} 28... Rb6 {[%clk
0:00:40.5]} 29. g3 {[%clk 0:02:11.3]} 29... Rd6 {[%clk 0:00:36.4]} 30. Re2
{[%clk 0:02:11.7]} 30... c4 {[%clk 0:00:35.9]} 31. Bc2 {[%clk 0:02:12.1]} 31...
Kf7 {[%clk 0:00:33]} 32. Kg2 {[%clk 0:02:13]} 32... Nd7 {[%clk 0:00:33.7]} 33.
h4 {[%clk 0:02:13]} 33... Nc5 {[%clk 0:00:33.3]} 34. h5 {[%clk 0:02:05.7]} 34...
g6 {[%clk 0:00:31.2]} 35. b3 {[%clk 0:02:00.6]} 35... cxb3 {[%clk 0:00:28.4]}
36. axb3 {[%clk 0:02:02.5]} 36... gxh5 {[%clk 0:00:29.8]} 37. Re5 {[%clk
0:01:56.7]} 37... h4 {[%clk 0:00:22.6]} 38. Rxc5 {[%clk 0:01:56.1]} 38... hxg3
{[%clk 0:00:23.3]} 39. Kxg3 {[%clk 0:01:58]} 39... Rd2 {[%clk 0:00:20.6]} 40.
Bxh7 {[%clk 0:01:57.9]} 1-0

[Event "*** Titled Tuesday Blitz"]
[Site "Chess.com"]
[Date "2018.06.05"]
[Round "1"]
[White "sari07"]
[Black "Anahita_Gholami"]
[Result "0-1"]
[WhiteElo "2170"]
[BlackElo "2505"]
[TimeControl "180+2"]
[EndTime "13:06:57 PDT"]
[Termination "Anahita_Gholami won by checkmate"]

1. e4 {[%clk 0:03:01.6]} 1... e5 {[%clk 0:03:00.9]} 2. Nf3 {[%clk 0:03:02.2]}
2... Nc6 {[%clk 0:03:02.1]} 3. d4 {[%clk 0:03:02.6]} 3... exd4 {[%clk
0:03:02.8]} 4. Nxd4 {[%clk 0:03:03.6]} 4... Nf6 {[%clk 0:03:04]} 5. Nxc6 {[%clk
0:03:03.3]} 5... bxc6 {[%clk 0:03:05.9]} 6. e5 {[%clk 0:03:04.4]} 6... Qe7
{[%clk 0:03:06.4]} 7. Qe2 {[%clk 0:03:04.6]} 7... Nd5 {[%clk 0:03:07.5]} 8. c4
{[%clk 0:03:04.6]} 8... Ba6 {[%clk 0:03:08.1]} 9. Nd2 {[%clk 0:03:05]} 9... g6
{[%clk 0:03:06.8]} 10. Nf3 {[%clk 0:03:05.8]} 10... Nb6 {[%clk 0:02:33.7]} 11.
b3 {[%clk 0:02:57.4]} 11... Bg7 {[%clk 0:02:34.3]} 12. Bb2 {[%clk 0:02:57.8]}
12... O-O {[%clk 0:02:34.7]} 13. h4 {[%clk 0:02:53.3]} 13... Rae8 {[%clk
0:02:34.7]} 14. h5 {[%clk 0:02:45.5]} 14... d5 {[%clk 0:02:34.3]} 15. hxg6
{[%clk 0:02:10.9]} 15... fxg6 {[%clk 0:02:33]} 16. Qc2 {[%clk 0:02:03]} 16...
Rxf3 {[%clk 0:01:36.3]} 17. gxf3 {[%clk 0:01:54.3]} 17... Qb4+ {[%clk
0:01:37.3]} 18. Bc3 {[%clk 0:01:44.4]} 18... Bxe5 {[%clk 0:01:36.3]} 19. O-O-O
{[%clk 0:01:26.8]} 19... Bxc3 {[%clk 0:01:27.1]} 20. Bd3 {[%clk 0:01:27.4]}
20... Re6 {[%clk 0:01:19.3]} 21. Rdg1 {[%clk 0:00:54.5]} 21... Bg7 {[%clk
0:01:01.9]} 22. Rxh7 {[%clk 0:00:16.9]} 22... Kxh7 {[%clk 0:00:59.7]} 23. Bxg6+
{[%clk 0:00:17.6]} 23... Kg8 {[%clk 0:00:59.5]} 24. Bh7+ {[%clk 0:00:18.6]}
24... Kf8 {[%clk 0:00:57.2]} 25. Rxg7 {[%clk 0:00:17.5]} 25... Kxg7 {[%clk
0:00:56.3]} 26. Qf5 {[%clk 0:00:16.8]} 26... Qc3+ {[%clk 0:00:57.3]} 27. Kb1
{[%clk 0:00:16.4]} 27... Re1# {[%clk 0:00:59.1]} 0-1